Workbook

Sheet Sheet1
C5: 1 | D5: 2 | E5: 3 | I5: =D5*G6-E5 -> 9
C6: 2 | D6: 3 | E6: 4 | G6: =C5+D5*E5/C6*D6-E6 -> 6 | I6: =D6*G7-E6 -> 35
C7: 3 | D7: 4 | E7: 5 | G7: =C6+D6*E6/C7*D7-E7 -> 13 | I7: =D7*G8-E7 -> 83
C8: 4 | D8: 5 | E8: 6 | G8: =C7+D7*E7/C8*D8-E8 -> 22 | I8: =D8*G9-E8 -> 159
C9: 5 | D9: 6 | E9: 7 | G9: =C8+D8*E8/C9*D9-E9 -> 33 | I9: =D9*G10-E9 -> 269
C10: 6 | D10: 7 | E10: 8 | G10: =C9+D9*E9/C10*D10-E10 -> 46 | I10: =D10*G11-E10 -> 419
C11: 7 | D11: 8 | E11: 9 | G11: =C10+D10*E10/C11*D11-E11 -> 61 | I11: =D11*G12-E11 -> 615
C12: 8 | D12: 9 | E12: 10 | G12: =C11+D11*E11/C12*D12-E12 -> 78 | I12: =D12*G13-E12 -> 863
C13: 9 | D13: 10 | E13: 11 | G13: =C12+D12*E12/C13*D13-E13 -> 97 | I13: =D13*G14-E13 -> 1169
C14: 10 | D14: 11 | E14: 12 | G14: =C13+D13*E13/C14*D14-E14 -> 118 | I14: =D14*G15-E14 -> 1539
C15: 11 | D15: 12 | E15: 13 | G15: =C14+D14*E14/C15*D15-E15 -> 141 | I15: =D15*G16-E15 -> 1979
C16: 12 | D16: 13 | E16: 14 | G16: =C15+D15*E15/C16*D16-E16 -> 166 | I16: =D16*G17-E16 -> 2495
C17: 13 | D17: 14 | E17: 15 | G17: =C16+D16*E16/C17*D17-E17 -> 193 | I17: =D17*G18-E17 -> 3093
C18: 14 | D18: 15 | E18: 16 | G18: =C17+D17*E17/C18*D18-E18 -> 222 | I18: =D18*G19-E18 -> 3779
C19: 15 | D19: 16 | E19: 17 | G19: =C18+D18*E18/C19*D19-E19 -> 253 | I19: =D19*G20-E19 -> 4559
C20: 16 | D20: 17 | E20: 18 | G20: =C19+D19*E19/C20*D20-E20 -> 286 | I20: =D20*G21-E20 -> 5439
C21: 17 | D21: 18 | E21: 19 | G21: =C20+D20*E20/C21*D21-E21 -> 321 | I21: =D21*G22-E21 -> 6425
C22: 18 | D22: 19 | E22: 20 | G22: =C21+D21*E21/C22*D22-E22 -> 358 | I22: =D22*G23-E22 -> 7523
C23: 19 | D23: 20 | E23: 21 | G23: =C22+D22*E22/C23*D23-E23 -> 397 | I23: =D23*G24-E23 -> 8739
C24: 20 | D24: 21 | E24: 22 | G24: =C23+D23*E23/C24*D24-E24 -> 438 | I24: =D24*G25-E24 -> 10079
C25: 21 | D25: 22 | E25: 23 | G25: =C24+D24*E24/C25*D25-E25 -> 481 | I25: =D25*G26-E25 -> 11549
C26: 22 | D26: 23 | E26: 24 | G26: =C25+D25*E25/C26*D26-E26 -> 526 | I26: =D26*G27-E26 -> 13155
C27: 23 | D27: 24 | E27: 25 | G27: =C26+D26*E26/C27*D27-E27 -> 573 | I27: =D27*G28-E27 -> 14903
C28: 24 | D28: 25 | E28: 26 | G28: =C27+D27*E27/C28*D28-E28 -> 622 | I28: =D28*G29-E28 -> 16799
C29: 25 | D29: 26 | E29: 27 | G29: =C28+D28*E28/C29*D29-E29 -> 673 | I29: =D29*G30-E29 -> -27
